bitfinex-derivatives/quotes_BTCF0:USTF0_20240917
["timestamp","ask_amount","ask_price","bid_price","bid_amount"]
[1726548721651,0.085692,58345.0,58344.0,0.00857095]
[1726548721847,0.085692,58345.0,58344.0,0.00957095]
[1726548722249,0.085692,58345.0,58344.0,0.13215206]
[1726548722544,0.085692,58345.0,58344.0,0.13209951]
[1726548722749,0.087692,58345.0,58344.0,0.13109951]
[1726548722948,0.087692,58345.0,58344.0,0.12815639]
[1726548724253,0.002,58345.0,58344.0,0.12815639]
[1726548724953,0.086692,58345.0,58344.0,0.12815639]
[1726548725152,0.03524759,58345.0,58344.0,0.27714563]
[1726548730549,0.03524759,58345.0,58344.0,0.27537641]
[1726548731359,0.01459478,58352.0,58344.0,0.27537641]
[1726548731567,0.085692,58345.0,58344.0,0.00257095]
[1726548731760,0.085692,58345.0,58344.0,0.2288034]
[1726548732062,1.199892,58345.0,58344.0,0.12453683]
[1726548732265,0.085703,58338.0,58337.0,0.004]
[1726548732559,0.085706,58336.0,58332.0,0.37162899]
[1726548732963,0.086106,58336.0,58332.0,0.37162899]
[1726548733470,0.086106,58336.0,58332.0,0.45733999]
[1726548733658,0.086106,58336.0,58332.0,0.61821999]
[1726548734058,0.080106,58336.0,58332.0,0.61821999]
[1726548734263,0.080106,58336.0,58335.0,0.00557003]
[1726548734858,0.080106,58336.0,58335.0,0.00757003]
[1726548737065,0.0004,58336.0,58335.0,0.09327703]
[1726548737381,0.0857,58340.0,58339.0,0.085701]
[1726548737571,0.0857,58340.0,58339.0,0.606901]
[1726548738160,0.0857,58340.0,58339.0,0.5212]
[1726548738861,0.0867,58340.0,58339.0,0.5212]
[1726548740169,0.04682519,58343.0,58339.0,0.79246563]
[1726548740367,0.04682519,58343.0,58342.0,0.10206247]
[1726548740568,0.04682519,58343.0,58342.0,0.2258172]
[1726548741467,0.04682519,58343.0,58342.0,0.12415473]
[1726548741660,0.04682519,58343.0,58342.0,0.22586209]
[1726548741857,0.04682519,58343.0,58342.0,0.22786209]
[1726548742070,0.04682519,58343.0,58342.0,0.22761929]
[1726548742476,0.04682519,58343.0,58342.0,0.23161929]
[1726548743566,0.04682519,58343.0,58342.0,0.13391193]
[1726548743969,0.04682519,58343.0,58342.0,0.23371193]
[1726548744168,0.04682519,58343.0,58342.0,0.22971193]
[1726548744363,0.04682519,58343.0,58342.0,0.23671193]
[1726548744864,0.04682519,58343.0,58342.0,0.22871193]
[1726548745063,0.085688,58348.0,58342.0,0.28441193]
[1726548745264,0.245688,58348.0,58347.0,0.0004]
[1726548745572,0.331376,58348.0,58347.0,0.0004]
[1726548747074,0.333376,58348.0,58347.0,0.0004]
[1726548748572,0.173376,58348.0,58347.0,0.0004]
[1726548749767,0.175376,58348.0,58347.0,0.0004]
[1726548752079,0.536176,58348.0,58347.0,0.0004]
[1726548753667,0.536176,58348.0,58347.0,0.20925728]
[1726548753868,0.536176,58348.0,58347.0,0.0004]
[1726548757381,0.696176,58348.0,58347.0,0.0004]
[1726548757977,0.636176,58348.0,58347.0,0.0004]
[1726548761984,0.536176,58348.0,58347.0,0.0004]
[1726548762178,0.536176,58348.0,58347.0,0.12418794]
[1726548763476,0.175376,58348.0,58347.0,0.12418794]
[1726548766286,0.175376,58348.0,58347.0,0.12410266]
[1726548767181,0.175376,58348.0,58347.0,0.27155458]
[1726548768790,0.175376,58348.0,58347.0,0.12410266]
[1726548770190,0.175376,58348.0,58347.0,0.0004]
[1726548772187,0.536176,58348.0,58347.0,0.0004]
[1726548772392,0.450488,58348.0,58347.0,0.0004]
[1726548772595,0.536176,58348.0,58347.0,0.0004]
[1726548774588,0.4197,58348.0,58342.0,0.3608]
[1726548774791,0.4197,58348.0,58315.0,0.0965]
[1726548774792,0.5811679,58343.0,58315.0,0.0965]
[1726548775089,0.10283557,58328.0,58320.0,0.1]
[1726548775294,0.3608,58329.0,58320.0,0.1]
[1726548775482,0.446516,58329.0,58328.0,0.0004]
[1726548775990,0.3608,58329.0,58320.0,0.1]
[1726548776185,0.0004,58321.0,58320.0,0.1]
[1726548777190,0.0004,58321.0,58320.0,0.32522659]
[1726548777491,0.0004,58321.0,58320.0,0.33222659]
[1726548777694,0.0004,58321.0,58320.0,0.34122659]
[1726548778189,0.0004,58321.0,58320.0,0.33422659]
[1726548778395,0.0014,58321.0,58320.0,0.23909576]
[1726548778993,0.086128,58321.0,58320.0,0.13209576]
[1726548779190,0.087128,58321.0,58320.0,0.24122659]
[1726548779391,0.087128,58321.0,58320.0,0.13909576]
[1726548780685,0.087128,58321.0,58320.0,0.23909576]
[1726548780885,0.086128,58321.0,58320.0,0.23209576]
[1726548781091,0.086128,58321.0,58320.0,0.23809576]
[1726548781386,0.0004,58321.0,58320.0,0.23709576]
[1726548781586,0.0086,58333.0,58320.0,0.75149576]
[1726548781796,0.0086,58333.0,58332.0,0.1004]
[1726548781797,0.085711,58333.0,58332.0,0.1004]
[1726548781989,0.085711,58333.0,58332.0,0.22287628]
[1726548783992,0.085711,58333.0,58332.0,0.12287628]
[1726548784294,0.087711,58333.0,58332.0,0.12287628]
[1726548784592,0.087711,58333.0,58332.0,0.12283453]
[1726548784990,0.085711,58333.0,58332.0,0.13583453]
[1726548785198,0.0428329,58333.0,58332.0,0.13583453]
[1726548785392,0.0428329,58333.0,58332.0,0.08131954]
[1726548785592,0.0428329,58333.0,58332.0,0.0134]
[1726548786701,0.0428329,58333.0,58332.0,0.0114]
[1726548788392,0.0428329,58333.0,58332.0,0.0104]
[1726548788899,0.0428329,58333.0,58332.0,0.0094]
[1726548789794,0.0428329,58333.0,58332.0,0.0084]
[1726548790597,0.0428329,58333.0,58332.0,0.0064]
[1726548791293,0.0428329,58333.0,58332.0,0.0034]
[1726548791498,0.0428329,58333.0,58332.0,0.0054]
[1726548792695,0.0428329,58333.0,58332.0,0.12763839]
[1726548792893,0.0428329,58333.0,58332.0,0.12563839]
[1726548793201,0.0428329,58333.0,58332.0,0.12763839]
[1726548793799,0.2028329,58333.0,58332.0,0.12663839]
[1726548794195,0.2028329,58333.0,58332.0,0.12463839]
[1726548794388,0.2028329,58333.0,58332.0,0.12763839]
[1726548794593,0.2028329,58333.0,58332.0,0.12563839]
[1726548794897,0.2028329,58333.0,58332.0,0.12366232]
[1726548795998,0.2038329,58333.0,58332.0,0.12366232]
[1726548796499,0.2038329,58333.0,58332.0,0.12266232]
[1726548796696,0.2895439,58333.0,58332.0,0.12266232]
[1726548797200,0.2895439,58333.0,58332.0,0.12566232]
[1726548797498,0.31522011,58333.0,58332.0,0.12266232]
[1726548797799,0.31422011,58333.0,58332.0,0.0044]
[1726548798507,0.31722011,58333.0,58332.0,0.0024]
[1726548799197,0.31922011,58333.0,58332.0,0.0024]
[1726548799591,0.31922011,58333.0,58332.0,0.07039759]
[1726548800089,0.40493111,58333.0,58332.0,0.0024]
[1726548800494,0.40493111,58333.0,58332.0,0.0004]
[1726548801098,0.40693111,58333.0,58332.0,0.0014]
[1726548801600,1.52121111,58333.0,58332.0,0.0014]
[1726548802801,1.52121111,58333.0,58332.0,0.06944657]
[1726548803395,1.52121111,58333.0,58332.0,0.0014]
[1726548807191,1.52121111,58333.0,58332.0,1e-06]
[1726548807396,1.52121111,58333.0,58328.0,0.08510192]
[1726548807397,0.257133,58332.0,58331.0,3.6e-07]
[1726548807607,0.931813,58332.0,58331.0,3.6e-07]
[1726548807907,0.17144,58326.0,58325.0,0.008]
[1726548808096,0.171446,58324.0,58323.0,0.17910192]
[1726548808298,0.331846,58324.0,58323.0,0.30117108]
[1726548809997,0.271846,58324.0,58323.0,0.30117108]
[1726548810303,0.271846,58324.0,58323.0,0.17910192]
[1726548810903,0.271846,58324.0,58323.0,0.18110192]
[1726548811199,0.632646,58324.0,58323.0,0.1]
[1726548811590,0.64327173,58324.0,58323.0,0.1]
[1726548814705,0.64327173,58324.0,58323.0,0.22212776]
[1726548816799,0.64327173,58324.0,58323.0,0.30721476]
[1726548817001,0.64327173,58324.0,58323.0,0.30721521]
[1726548817203,0.64327173,58324.0,58323.0,0.22212776]
[1726548820006,1.00407173,58324.0,58323.0,0.22212776]
[1726548820408,0.28247173,58324.0,58323.0,0.22212776]
[1726548820606,1.00407173,58324.0,58323.0,0.22212776]
[1726548822917,1.00407173,58324.0,58323.0,0.1]
[1726548824808,0.28247173,58324.0,58323.0,0.1]
[1726548825109,1.00407173,58324.0,58323.0,0.1]
[1726548825905,2.20415473,58324.0,58323.0,0.1]
[1726548826100,2.20415473,58324.0,58313.0,0.10190446]
[1726548826101,0.085735,58316.0,58313.0,0.10190446]
[1726548826300,0.085741,58312.0,58310.0,0.10190446]
[1726548826515,0.085741,58312.0,58309.0,0.0479]
[1726548826516,0.186141,58312.0,58311.0,0.12507547]
[1726548826810,0.185741,58312.0,58311.0,0.00257216]
[1726548827210,0.244482,58312.0,58311.0,0.00257216]
[1726548827911,0.244482,58312.0,58311.0,0.01657216]
[1726548828107,0.245482,58312.0,58311.0,0.03057216]
[1726548829221,0.25585314,58312.0,58311.0,0.03057216]
[1726548830313,0.28285314,58312.0,58311.0,0.03057216]
[1726548832211,0.085751,58305.0,58304.0,0.10190446]
[1726548832417,0.40113733,58305.0,58304.0,0.12068478]
[1726548832607,0.48688833,58305.0,58304.0,0.12068478]
[1726548833017,0.57263933,58305.0,58304.0,0.12068478]
[1726548833413,0.57263933,58305.0,58303.0,0.0457]
[1726548833414,0.171506,58304.0,58303.0,0.0457]
[1726548833720,0.171506,58304.0,58302.0,0.0498]
[1726548833721,0.171508,58303.0,58302.0,0.0498]
[1726548833908,0.171508,58303.0,58300.0,0.83553]
[1726548833909,0.600714,58303.0,58300.0,0.83553]
[1726548834109,0.086157,58301.0,58300.0,0.48453]
[1726548834315,0.171514,58301.0,58300.0,0.48453]
[1726548834511,1.371831,58301.0,58300.0,0.48453]
[1726548834912,0.857271,58301.0,58300.0,0.48453]
[1726548835113,1.371831,58301.0,58300.0,0.48453]
[1726548835411,1.372831,58301.0,58300.0,0.48453]
[1726548837115,1.373831,58301.0,58300.0,0.48453]
[1726548837914,1.533831,58301.0,58300.0,0.48453]
[1726548839617,0.085766,58295.0,58294.0,0.0479]
[1726548839815,1.053132,58295.0,58294.0,0.0479]
[1726548840017,1.053532,58295.0,58294.0,0.0479]
[1726548840820,1.054532,58295.0,58294.0,0.0479]
[1726548841216,0.17154,58292.0,58291.0,0.0969]
[1726548841428,0.17194,58292.0,58291.0,0.0969]
[1726548843116,0.17294,58292.0,58291.0,0.0969]
[1726548843419,0.08717,58292.0,58291.0,0.0969]
[1726548843725,0.08817,58292.0,58291.0,0.0969]
[1726548845324,0.72252,58295.0,58291.0,0.0969]
[1726548845514,0.4969,58295.0,58294.0,0.13705429]
[1726548845715,0.4969,58295.0,58294.0,0.0004]
[1726548846021,0.582666,58295.0,58294.0,0.0004]
[1726548846823,0.583666,58295.0,58294.0,0.0004]
[1726548847424,0.584666,58295.0,58294.0,0.0004]
[1726548847714,0.744666,58295.0,58294.0,0.0004]
[1726548848217,0.744666,58295.0,58294.0,0.05131395]
[1726548848731,0.744666,58295.0,58294.0,0.0004]
[1726548849633,0.4989,58295.0,58294.0,0.0004]
[1726548850327,0.4989,58295.0,58294.0,0.05131395]
[1726548851228,0.584666,58295.0,58294.0,0.05131395]
[1726548851623,0.744666,58295.0,58294.0,0.05131395]
[1726548851823,0.744666,58295.0,58294.0,0.0004]
[1726548852223,0.744666,58295.0,58294.0,0.05131395]
[1726548853331,0.744666,58295.0,58294.0,0.0004]
[1726548853829,0.744666,58295.0,58294.0,0.05139214]
[1726548854033,0.744666,58295.0,58294.0,0.0004]
[1726548860328,0.744666,58295.0,58294.0,0.08548123]
[1726548860951,0.247766,58295.0,58294.0,0.2047592]
[1726548861232,0.247766,58295.0,58294.0,0.11965634]
[1726548861438,0.247766,58295.0,58294.0,0.0004]
[1726548861627,0.247766,58295.0,58294.0,0.20499638]
[1726548862042,0.247766,58295.0,58294.0,0.0004]
[1726548862334,0.333532,58295.0,58294.0,0.11982904]
[1726548862521,0.333532,58295.0,58294.0,0.20514549]
[1726548862721,0.333532,58295.0,58294.0,0.08570033]
[1726548863233,0.333532,58295.0,58294.0,0.11993071]
[1726548865131,0.333532,58295.0,58294.0,0.2052874]
[1726548865534,0.694332,58295.0,58294.0,0.11991533]
[1726548866535,0.694332,58295.0,58294.0,0.20527176]
[1726548867140,0.694332,58295.0,58294.0,0.11991533]
[1726548869137,0.333532,58295.0,58294.0,0.11991533]
[1726548869338,1.055132,58295.0,58294.0,0.11991533]
[1726548872045,0.995132,58295.0,58294.0,0.11991533]
[1726548874945,0.995132,58295.0,58294.0,0.0004]
[1726548875244,0.548566,58295.0,58294.0,0.0004]
[1726548875548,0.548566,58295.0,58294.0,0.08576194]
[1726548875751,0.548566,58295.0,58294.0,0.20520811]
[1726548876445,0.548566,58295.0,58294.0,0.0004]
[1726548876635,0.50565171,58295.0,58294.0,0.20525863]
[1726548876839,0.50565171,58295.0,58294.0,0.20525765]
[1726548877035,0.50565171,58295.0,58294.0,0.11990115]
[1726548878936,0.50565171,58295.0,58294.0,0.2052658]
[1726548880743,0.14485171,58295.0,58294.0,0.2052658]
[1726548880944,0.50565171,58295.0,58294.0,0.2052658]
[1726548883149,0.50565171,58295.0,58294.0,0.22180561]
[1726548883349,0.59141771,58295.0,58294.0,0.22180561]
[1726548883652,0.59141771,58295.0,58294.0,0.11990115]
[1726548890549,1.70605771,58295.0,58294.0,0.20529682]
[1726548890747,1.10605771,58295.0,58294.0,0.0004]
[1726548891143,0.59141771,58295.0,58294.0,0.0004]
[1726548891443,1.10605771,58295.0,58294.0,0.0004]
[1726548892942,0.59141771,58295.0,58294.0,0.0004]
[1726548894452,0.085775,58289.0,58277.0,0.11917142]
[1726548894654,0.4612,58278.0,58276.0,0.23907142]
[1726548894958,0.43539637,58278.0,58277.0,0.26211316]
[1726548895352,0.43539637,58278.0,58277.0,0.11957926]
[1726548896961,0.44705896,58278.0,58277.0,0.11957926]
[1726548897163,0.44805896,58278.0,58277.0,0.11957926]
[1726548897957,0.19885359,58278.0,58277.0,0.11957926]
[1726548898656,0.085792,58277.0,58276.0,0.1199]
[1726548898956,0.086192,58277.0,58276.0,0.23594914]
[1726548899760,0.087192,58277.0,58276.0,0.23594914]
[1726548899958,0.088192,58277.0,58276.0,0.23594914]
[1726548901564,0.088192,58277.0,58276.0,0.1199]
[1726548901968,0.188192,58277.0,58276.0,0.23582858]
[1726548902863,0.188192,58277.0,58276.0,0.23579843]
[1726548903072,0.188192,58277.0,58276.0,0.1199]
[1726548905353,0.088192,58277.0,58276.0,0.1199]
[1726548905562,0.0024,58277.0,58276.0,0.1199]
[1726548905761,0.0024,58277.0,58276.0,0.68233032]
[1726548906257,0.0024,58277.0,58276.0,0.32153032]
[1726548907563,0.0024,58277.0,58276.0,0.32137253]
[1726548908871,0.0024,58277.0,58276.0,0.68217253]
[1726548909073,0.088192,58277.0,58276.0,0.68217253]
[1726548909368,0.088192,58277.0,58276.0,0.59637853]
[1726548910364,0.088192,58277.0,58276.0,0.23557853]
[1726548910566,0.088192,58277.0,58276.0,0.1199]
[1726548912764,0.088192,58277.0,58276.0,0.23565376]
[1726548914178,0.088192,58277.0,58276.0,0.1199]
[1726548916677,0.088192,58277.0,58276.0,0.23563362]
[1726548917272,0.088192,58277.0,58276.0,0.32142762]
[1726548917775,0.088192,58277.0,58276.0,0.1199]
[1726548926587,0.088192,58277.0,58276.0,0.205694]
[1726548927173,0.088192,58277.0,58276.0,0.566494]
[1726548928083,0.0004,58278.0,58276.0,0.82061535]
[1726548928285,0.085792,58277.0,58276.0,0.82061535]
[1726548931287,0.085792,58277.0,58276.0,0.566494]
[1726548931482,0.086792,58277.0,58276.0,0.566494]
[1726548932903,0.086792,58277.0,58276.0,0.446594]
[1726548933203,0.04387081,58277.0,58276.0,0.69970716]
[1726548933713,0.04387081,58277.0,58276.0,0.33890716]
[1726548935403,0.04387081,58277.0,58276.0,0.085794]
[1726548938103,0.04387081,58277.0,58276.0,0.33850154]
[1726548938815,0.04387081,58277.0,58276.0,0.25270754]
[1726548940601,0.04387081,58277.0,58276.0,0.25272551]
[1726548942901,0.12966481,58277.0,58276.0,0.25272551]
[1726548943712,0.12966481,58277.0,58276.0,0.1152965]
[1726548944602,0.12966481,58277.0,58276.0,0.21790608]
[1726548945314,0.12966481,58277.0,58276.0,0.21800656]
[1726548947408,0.12966481,58277.0,58276.0,0.11539698]
[1726548947611,0.12966481,58277.0,58275.0,0.0855268]
[1726548947805,0.12966481,58277.0,58270.0,0.58848958]
[1726548947806,0.085797,58274.0,58272.0,0.0855268]
[1726548948010,0.0858,58272.0,58271.0,0.0855268]
[1726548948211,0.0862,58272.0,58271.0,0.0855268]
[1726548948414,0.0862,58272.0,58270.0,0.5714868]
[1726548948415,0.085801,58271.0,58270.0,0.5714868]
[1726548948609,0.086201,58271.0,58270.0,0.5705268]
[1726548949417,0.086201,58271.0,58270.0,0.485]
[1726548949619,0.087201,58271.0,58270.0,0.5705268]
[1726548949830,0.087201,58271.0,58270.0,0.485]
[1726548950122,0.088201,58271.0,58270.0,0.485]
[1726548950822,0.10091449,58271.0,58270.0,0.485]
[1726548951217,0.20091449,58271.0,58270.0,0.58760958]
[1726548951922,0.20091449,58271.0,58270.0,0.485]
[1726548952313,0.20091449,58271.0,58270.0,0.58757614]
[1726548952714,0.20091449,58271.0,58270.0,0.485]
[1726548955513,0.20091449,58271.0,58270.0,0.5704642]
[1726548958739,0.20091449,58271.0,58270.0,0.485]
[1726548960538,0.20091449,58271.0,58270.0,0.5704642]
[1726548962628,0.20091449,58271.0,58270.0,0.68535642]
[1726548963339,0.19991449,58271.0,58270.0,0.68535642]
[1726548963532,0.19891449,58271.0,58270.0,0.59989222]
[1726548963924,0.19891449,58271.0,58270.0,0.68535308]
[1726548964130,0.19891449,58271.0,58270.0,0.59989222]
[1726548971243,0.19891449,58271.0,58270.0,0.70246836]
[1726548972038,0.19891449,58271.0,58270.0,0.59989222]
[1726548972346,0.19891449,58271.0,58270.0,0.70246836]
[1726548972935,0.19891449,58271.0,58270.0,0.70252133]
[1726548973342,0.19891449,58271.0,58270.0,0.59994519]
[1726548973542,0.19891449,58271.0,58270.0,0.70260484]
[1726548973936,0.19891449,58271.0,58270.0,0.59994519]
[1726548975746,0.19891449,58271.0,58270.0,0.73701594]
[1726548976046,0.19891449,58271.0,58270.0,0.59994519]
[1726548976247,0.01311349,58271.0,58270.0,1.04654819]
[1726548976441,0.0004,58271.0,58270.0,1.04654819]
[1726548976840,0.09895287,58276.0,58272.0,0.085798]
[1726548977041,0.09895287,58276.0,58273.0,0.25183891]
[1726548977346,0.09895287,58276.0,58275.0,0.0004]
[1726548977648,0.09895287,58276.0,58275.0,0.11534519]
[1726548977842,0.09855287,58276.0,58275.0,0.11534519]
[1726548978048,0.04723045,58276.0,58275.0,0.11534519]
[1726548978447,0.04723045,58276.0,58275.0,0.21799167]
[1726548978744,0.04823045,58276.0,58275.0,0.21799167]
[1726548978951,0.04823045,58276.0,58275.0,0.11534519]
[1726548979452,0.05123045,58276.0,58275.0,0.11534519]
[1726548979841,0.05323045,58276.0,58275.0,0.11534519]
[1726548981751,0.05323045,58276.0,58275.0,0.11495387]
[1726548982645,0.05323045,58276.0,58275.0,0.11493532]
[1726548987452,0.05323045,58276.0,58275.0,0.11497055]
[1726548991954,1.25382545,58276.0,58275.0,0.11497055]
[1726548992154,1.32642545,58276.0,58275.0,0.0859302]
[1726548992753,0.72642545,58276.0,58275.0,0.0859302]
[1726548993257,0.72642545,58276.0,58275.0,0.0004]
[1726548993258,0.21162545,58276.0,58275.0,0.0004]
[1726548993646,0.72642545,58276.0,58275.0,0.0004]
[1726548994648,1.08722545,58276.0,58275.0,0.0004]
[1726548994848,0.21162545,58276.0,58275.0,0.0004]
[1726548995158,0.57242545,58276.0,58275.0,0.0004]
[1726548998956,0.41403045,58276.0,58275.0,0.0004]
[1726548999159,0.51403045,58276.0,58275.0,0.20057314]
[1726548999348,0.51403045,58276.0,58275.0,0.11504294]
[1726549001359,0.51403045,58276.0,58275.0,0.20058488]
[1726549001555,0.51403045,58276.0,58275.0,0.08592429]
[1726549001750,0.51403045,58276.0,58275.0,0.0004]
[1726549003162,0.51403045,58276.0,58275.0,0.20065287]
[1726549006851,0.51403045,58276.0,58275.0,0.20064288]
[1726549007267,0.51403045,58276.0,58275.0,0.0004]
[1726549009149,0.59982545,58276.0,58275.0,0.0004]
[1726549009860,0.59982545,58276.0,58275.0,0.06882608]
[1726549010452,0.59982545,58276.0,58275.0,0.05172262]
[1726549011460,0.96062545,58276.0,58275.0,0.05172262]
[1726549012159,0.171596,58273.0,58272.0,0.06842608]
[1726549012357,0.171596,58273.0,58270.0,0.485]
[1726549012358,0.085801,58271.0,58270.0,0.57152429]
[1726549012562,0.085801,58271.0,58270.0,0.68541478]
[1726549012563,0.447001,58271.0,58270.0,0.68541478]
[1726549013460,0.447001,58271.0,58270.0,0.57052429]
[1726549015056,0.447001,58271.0,58270.0,0.485]
[1726549017471,0.086201,58271.0,58270.0,0.485]
[1726549017664,0.447001,58271.0,58270.0,0.485]
[1726549020364,0.532802,58271.0,58270.0,0.485]
[1726549028973,0.172002,58271.0,58270.0,0.485]
[1726549029179,0.532802,58271.0,58270.0,0.485]
[1726549029874,0.447001,58271.0,58270.0,0.485]
[1726549032376,0.086201,58271.0,58270.0,0.485]
[1726549032578,0.447001,58271.0,58270.0,0.485]
[1726549035480,0.447001,58271.0,58270.0,0.57052429]
[1726549036475,0.447001,58271.0,58270.0,0.68511901]
[1726549036884,0.447001,58271.0,58270.0,0.59959472]
[1726549037183,0.447001,58271.0,58270.0,0.68516084]
[1726549037376,0.447001,58271.0,58270.0,0.59959472]
[1726549038074,0.447001,58271.0,58270.0,0.68517221]
[1726549038373,0.447001,58271.0,58270.0,0.57057749]
[1726549038575,0.447001,58271.0,58270.0,0.485]
[1726549039477,0.447001,58271.0,58270.0,0.68531911]
[1726549040580,0.0004,58271.0,58270.0,0.59974162]
[1726549041096,0.01275887,58276.0,58270.0,2.07538162]
[1726549041275,0.004,58278.0,58275.0,0.0004]
[1726549041472,0.01281522,58278.0,58277.0,0.0004]
[1726549041677,0.1,58279.0,58277.0,0.26516284]
[1726549041883,0.1,58279.0,58278.0,0.0004]
[1726549042183,0.185789,58279.0,58278.0,0.0004]
[1726549042780,0.19862863,58279.0,58278.0,0.0004]
[1726549043179,0.20562863,58279.0,58278.0,0.0004]
[1726549044080,0.21162863,58279.0,58278.0,0.08595301]
[1726549044284,0.21162863,58279.0,58278.0,0.0004]
[1726549044674,0.21162863,58279.0,58278.0,0.08595301]
[1726549044880,0.12583963,58279.0,58278.0,0.20005961]
[1726549045088,0.12583963,58279.0,58278.0,0.0004]
[1726549045089,0.21162863,58279.0,58278.0,0.0004]
[1726549053196,0.21162863,58279.0,58278.0,0.06868092]
[1726549054003,0.21162863,58279.0,58278.0,0.0004]
[1726549054192,0.21162863,58279.0,58278.0,0.06869114]
[1726549056099,0.21162863,58279.0,58278.0,0.0004]
[1726549066898,0.21162863,58279.0,58278.0,0.08595301]
[1726549067207,0.21162863,58279.0,58278.0,0.19987765]
[1726549067401,0.21162863,58279.0,58278.0,0.08595301]
[1726549067606,0.21162863,58279.0,58278.0,0.19989458]
[1726549068202,0.21162863,58279.0,58278.0,0.11434157]
[1726549068910,0.21162863,58279.0,58278.0,0.1997929]
[1726549069107,0.29741763,58279.0,58278.0,0.0004]
[1726549070202,0.29741763,58279.0,58278.0,0.0859319]
[1726549070398,0.29741763,58279.0,58278.0,0.0004]
[1726549075799,0.65821763,58279.0,58278.0,0.0004]
[1726549078206,0.47242863,58279.0,58278.0,0.0004]
[1726549078409,0.02583963,58279.0,58278.0,0.0004]
[1726549078610,0.02583963,58279.0,58278.0,0.11455674]
[1726549080014,0.02583963,58279.0,58278.0,0.21722256]
[1726549080511,0.11162863,58279.0,58278.0,0.21722256]
[1726549080714,0.11162863,58279.0,58278.0,0.11455674]
[1726549081215,0.47242863,58279.0,58278.0,0.11455674]
[1726549081611,0.57242863,58279.0,58278.0,0.11455674]
[1726549084119,0.21162863,58279.0,58278.0,0.11455674]
[1726549084321,0.57242863,58279.0,58278.0,0.11455674]
[1726549087926,0.57242863,58279.0,58278.0,0.0004]
[1726549088123,0.57242863,58279.0,58278.0,0.08594055]
[1726549088425,0.57242863,58279.0,58278.0,0.20033812]
[1726549089917,0.57242863,58279.0,58278.0,0.08594055]
[1726549090726,0.57242863,58279.0,58278.0,0.20034748]
[1726549091617,0.57242863,58279.0,58278.0,0.08594055]
[1726549093119,0.57242863,58279.0,58278.0,0.0004]
[1726549093625,0.57242863,58279.0,58278.0,0.08594055]
[1726549095617,0.57242863,58279.0,58278.0,0.0004]
[1726549099029,0.11162863,58279.0,58278.0,0.11476393]
[1726549099830,0.11162863,58279.0,58278.0,0.17566393]
[1726549102023,0.11162863,58279.0,58278.0,0.0613]
[1726549102227,0.11162863,58279.0,58278.0,0.17558017]
[1726549105533,0.11162863,58279.0,58278.0,0.17561823]
[1726549105934,0.11162863,58279.0,58278.0,0.26115551]
[1726549106321,0.11162863,58279.0,58278.0,0.17561823]
[1726549106826,0.11162863,58279.0,58278.0,0.26115638]
[1726549107024,0.11162863,58279.0,58278.0,0.17561823]
[1726549107426,0.11162863,58279.0,58278.0,0.26115868]
[1726549107626,0.11162863,58279.0,58278.0,0.26115824]
[1726549108135,0.11162863,58279.0,58278.0,0.26121005]
[1726549108329,0.11162863,58279.0,58278.0,0.0613]
[1726549112331,0.11162863,58279.0,58278.0,0.0004]
[1726549116840,0.47242863,58279.0,58278.0,0.0004]
[1726549117142,0.11162863,58279.0,58278.0,0.0004]
[1726549117342,0.47242863,58279.0,58278.0,0.0004]
[1726549119140,0.11162863,58279.0,58278.0,0.0004]
[1726549119346,0.47242863,58279.0,58278.0,0.0004]
[1726549124041,0.11162863,58279.0,58278.0,0.20028781]
[1726549124835,0.11162863,58279.0,58278.0,0.20026426]
[1726549126238,0.19741763,58279.0,58278.0,0.20026426]
[1726549126436,0.19741763,58279.0,58278.0,0.0004]
[1726549134047,0.55821763,58279.0,58278.0,0.0004]
[1726549135054,0.19741763,58279.0,58278.0,0.0004]
[1726549135257,0.55821763,58279.0,58278.0,0.0004]
[1726549140960,0.55821763,58279.0,58278.0,0.06885157]
[1726549143259,0.91901763,58279.0,58278.0,0.06885157]
[1726549143760,0.91901763,58279.0,58278.0,0.0004]
[1726549145149,0.19741763,58279.0,58278.0,0.0004]
[1726549145349,0.91901763,58279.0,58278.0,0.0004]
[1726549146160,0.19741763,58279.0,58278.0,0.0004]
[1726549146456,0.91901763,58279.0,58278.0,0.0004]
[1726549147158,0.19741763,58279.0,58278.0,0.0004]
[1726549147359,0.91901763,58279.0,58278.0,0.0004]
[1726549147850,0.83322863,58279.0,58278.0,0.0004]
[1726549148050,0.83322863,58279.0,58278.0,0.0564]
[1726549149361,0.91901763,58279.0,58278.0,0.0564]
[1726549149546,0.91901763,58279.0,58278.0,0.0004]
[1726549150650,0.55821763,58279.0,58278.0,0.0004]
[1726549156764,0.19741763,58279.0,58278.0,0.0004]
[1726549156966,0.55821763,58279.0,58278.0,0.0004]
[1726549161378,0.55821763,58279.0,58278.0,0.05174797]
[1726549162367,1.75876663,58279.0,58278.0,0.0004]
[1726549162669,0.085791,58278.0,58277.0,0.05135066]
[1726549162866,0.171588,58276.0,58275.0,0.0004]
[1726549163365,0.686388,58276.0,58275.0,0.0004]
[1726549163564,0.171594,58274.0,58273.0,0.05135455]
[1726549163762,0.532794,58274.0,58273.0,0.05135455]
[1726549165167,0.0858,58272.0,58271.0,0.06846396]
[1726549165372,0.1858,58272.0,58271.0,0.06846396]
[1726549165575,0.547,58272.0,58271.0,0.06846396]
[1726549166261,0.085801,58271.0,58270.0,0.48588]
[1726549166463,0.086201,58271.0,58270.0,0.485]
[1726549167876,0.807801,58271.0,58270.0,0.485]
[1726549169568,0.807801,58271.0,58270.0,0.55341555]
[1726549169569,0.893602,58271.0,58270.0,0.55341555]
[1726549170575,0.893602,58271.0,58270.0,0.485]
[1726549170970,0.90645004,58271.0,58270.0,0.485]
[1726549171476,0.54565004,58271.0,58270.0,0.55340605]
[1726549171676,0.54565004,58271.0,58270.0,0.485]
[1726549175769,0.45984904,58271.0,58270.0,0.485]
[1726549176371,0.41691841,58271.0,58270.0,0.62964001]
[1726549176572,0.41691841,58271.0,58270.0,0.5441]
[1726549176784,0.37404804,58271.0,58270.0,0.5441]
[1726549177280,0.37404804,58271.0,58270.0,0.74415232]
[1726549177281,0.2695,58271.0,58270.0,0.74415232]
[1726549177479,0.0044,58278.0,58272.0,0.085798]
[1726549177671,0.0004,58278.0,58277.0,0.0004]
[1726549177975,0.09894926,58278.0,58277.0,0.0004]
[1726549178373,0.09854926,58278.0,58277.0,0.0004]